fUST/lending_fUST_20240227
["ID","MTS","AMOUNT","RATE_DAILY","PERIOD"]
[315370980,1708992648620,-500.0,0.00020547,2]
[315370981,1708992648630,-500.0,0.00020547,2]
[315370982,1708992648639,-500.0,0.00020547,2]
[315370983,1708992648648,-3226.67,0.00020547,2]
[315370984,1708992648658,-536.28,0.00020547,2]
[315370985,1708992648668,-1303.69,0.00020547,2]
[315370986,1708992648678,-1352.38,0.00020547,2]
[315370987,1708992648687,-500.0,0.00020547,2]
[315370988,1708992648696,-307.43320476,0.00020547,2]
[315370989,1708992648706,-2042.42,0.00020547,2]
[315370990,1708992648715,-752.08,0.00020547,2]
[315370991,1708992648724,-500.0,0.00020547,2]
[315370992,1708992648734,-500.0,0.00020547,2]
[315370993,1708992648743,-500.0,0.00020547,2]
[315370994,1708992648753,-500.0,0.00020547,2]
[315370995,1708992648762,-505.19240896,0.00020547,2]
[315370996,1708992648771,-500.0,0.00020547,2]
[315370997,1708992648781,-500.0,0.00020547,2]
[315370998,1708992648791,-576.01,0.00020547,2]
[315370999,1708992648800,-224.16562463,0.00020547,2]
[315371000,1708992648810,-500.0,0.00020547,2]
[315371001,1708992648819,-500.0,0.00020547,2]
[315371002,1708992648828,-500.0,0.00020547,2]
[315371003,1708992648837,-500.0,0.00020547,2]
[315371004,1708992648846,-500.0,0.00020547,2]
[315371005,1708992648855,-170.41229033,0.00020547,2]
[315371006,1708992648864,-500.0,0.00020547,2]
[315371007,1708992648873,-2198.83,0.00020547,2]
[315371008,1708992648882,-1625.24,0.00020547,2]
[315371009,1708992648891,-1300.41,0.00020547,2]
[315371010,1708992648900,-500.0,0.00020547,2]
[315371011,1708992648909,-500.0,0.00020547,2]
[315371012,1708992648918,-907.39,0.00020547,2]
[315371013,1708992648927,-500.0,0.00020547,2]
[315371014,1708992648941,-609.03734484,0.00020547,2]
[315371015,1708992648951,-500.0,0.00020547,2]
[315371016,1708992648960,-1106.32,0.00020547,2]
[315371017,1708992648969,-3645.04,0.00020547,2]
[315371018,1708992648979,-1431.7,0.00020547,2]
[315371019,1708992648988,-865.79,0.00020547,2]
[315371020,1708992648997,-949.56,0.00020547,2]
[315371021,1708992649006,-500.0,0.00020547,2]
[315371022,1708992649016,-659.55,0.00020547,2]
[315371023,1708992649025,-11020.62,0.00020547,2]
[315371024,1708992649036,-1715.46,0.00020547,2]
[315371025,1708992649046,-3554.77,0.00020547,2]
[315371026,1708992649055,-500.0,0.00020547,2]
[315371027,1708992649064,-500.0,0.00020547,2]
[315371028,1708992649074,-2853.03,0.00020547,2]
[315371029,1708992649083,-1894.86,0.00020547,2]
[315371030,1708992649092,-2054.17,0.00020547,2]
[315371031,1708992649101,-328.19481189,0.00020547,2]
[315371032,1708992649110,-17851.83,0.00020547,2]
[315371033,1708992649119,-2560.44,0.00020547,2]
[315371034,1708992649129,-500.0,0.00020547,2]
[315371035,1708992649138,-500.0,0.00020547,2]
[315371036,1708992649147,-1573.46,0.00020547,2]
[315371037,1708992649157,-7320.56,0.00020547,2]
[315371038,1708992649166,-500.0,0.00020547,2]
[315371039,1708992649175,-3358.79,0.00020547,2]
[315371040,1708992649185,-2076.84,0.00020547,2]
[315371041,1708992649194,-500.0,0.00020547,2]
[315371042,1708992649203,-500.0,0.00020547,2]
[315371043,1708992649212,-17303.09,0.00020547,2]
[315371044,1708992649222,-500.0,0.00020547,2]
[315371045,1708992649231,-2705.82,0.00020547,2]
[315371046,1708992649240,-500.0,0.00020547,2]
[315371047,1708992649250,-597.76,0.00020547,2]
[315371048,1708992649260,-1863.07,0.00020547,2]
[315371049,1708992649270,-500.0,0.00020547,2]
[315371050,1708992649280,-2065.8,0.00020547,2]
[315371051,1708992649289,-2463.51589487,0.00020617,2]
[315371052,1708992649298,-5000.0,0.00020661,2]
[315371053,1708992649308,-5000.0,0.00020661,2]
[315371054,1708992649317,-5000.0,0.00020668,2]
[315371055,1708992649326,-5000.0,0.00020668,2]
[315371056,1708992649335,-5000.0,0.00020668,2]
[315371057,1708992649345,-5000.0,0.00020668,2]
[315371058,1708992649354,-151.0,0.00020668,2]
[315371059,1708992649363,-184.028284,0.00020668,2]
[315371060,1708992649372,-184.028284,0.00020668,2]
[315371061,1708992649381,-220.66074,0.00020668,2]
[315371062,1708992649390,-5000.0,0.00020683,2]
[315371063,1708992649399,-3941.170404,0.00020683,2]
[315371064,1708992649408,-3941.170404,0.00020683,2]
[315371065,1708992649417,-861.33,0.00020714,2]
[315371066,1708992649426,-861.33,0.00020714,2]
[315371067,1708992649435,-861.33,0.00020714,2]
[315371068,1708992649444,-861.33,0.00020714,2]
[315371069,1708992649453,-861.46471994,0.00020714,2]
[315371070,1708992649463,-1000.0,0.00020715,2]
[315371071,1708992649472,-29540.60483558,0.00020715,2]
[315371072,1708992649481,-1000.0,0.00020715,2]
[315371073,1708992649490,-525.0,0.00020715,2]
[315371074,1708992649499,-215.88630621,0.00020715,2]
[315371075,1708992649508,-1000.0,0.00020715,2]
[315371076,1708992649518,-1000.0,0.00020715,2]
[315371077,1708992649526,-254.40219807,0.00020715,2]
[315371078,1708992649536,-151.0,0.00020715,2]
[315371079,1708992649545,-2217.29791657,0.00020716,2]
[315371080,1708992649554,-238.803206,0.00020716,2]
[315371081,1708992649563,-238.803206,0.00020716,2]
[315371082,1708992649572,-371.64251296,0.00020723,2]
[315371083,1708992649581,-1000.0,0.00020725,2]
[315371084,1708992649591,-5191.72413833,0.00020733,2]
[315371085,1708992649600,-2463.51589487,0.00020758,2]
[315371086,1708992649609,-1000.0,0.00020768,2]
[315371087,1708992649698,-1000.0,0.00020783,2]
[315371088,1708992649707,-273.23870182,0.00020784,2]
[315371089,1708992649717,-179.43256387,0.00020784,2]
[315371090,1708992649726,-91880.7763356,0.00020785,2]
[315371091,1708992649870,-4990.71373571,0.00020785,2]
[315371092,1708992649880,-376.75451,0.00020785,2]
[315371093,1708992649890,-376.75451,0.00020785,2]
[315371094,1708992649899,-3376.47790038,0.000208,2]
[315371095,1708992649917,-1322.09564005,0.000208,2]
[315371096,1708992649927,-1000.0,0.0002081,2]
[315371097,1708992649942,-1000.0,0.00020811,2]
[315371098,1708992649952,-951.21450269,0.00020819,2]
[315371099,1708992649961,-290.05288383,0.00020819,2]
[315371100,1708992649970,-292.07022726,0.0002082,2]
[315371101,1708992649980,-275.35808168,0.0002082,2]
[315371102,1708992649989,-4699.22949954,0.0002082,2]
[315371103,1708992649998,-160.0,0.0002082,2]
[315371104,1708992650007,-160.0,0.0002082,2]
[315371105,1708992650017,-574.29,0.00020821,2]
[315371106,1708992650028,-500.0,0.00020821,2]
[315371107,1708992650038,-500.0,0.00020821,2]
[315371108,1708992650047,-1263.81,0.00020821,2]
[315371109,1708992650056,-500.0,0.00020821,2]
[315371110,1708992650066,-500.0,0.00020821,2]
[315371111,1708992650075,-599.32113088,0.00020821,2]
[315371112,1708992650085,-151.0,0.00020821,2]
[315371113,1708992650095,-3226.67,0.00020821,2]
[315371114,1708992650105,-536.28,0.00020821,2]
[315371115,1708992650114,-1303.69,0.00020821,2]
[315371116,1708992650123,-1352.38,0.00020821,2]
[315371117,1708992650132,-508.16056431,0.00020821,2]
[315371118,1708992650141,-2042.42,0.00020821,2]
[315371119,1708992650150,-752.08,0.00020821,2]
[315371120,1708992650160,-500.0,0.00020821,2]
[315371121,1708992650169,-500.0,0.00020821,2]
[315371122,1708992650178,-500.0,0.00020821,2]
[315371123,1708992650188,-253.68558529,0.00020821,2]
[315371124,1708992650197,-500.0,0.00020821,2]
[315371125,1708992650206,-272.80965507,0.00020821,2]
[315371126,1708992650373,-227.19034493,0.00020821,2]
[315371127,1708992650382,-576.01,0.00020821,2]
[315371128,1708992650391,-500.0,0.00020821,2]
[315371129,1708992650402,-500.0,0.00020821,2]
[315371130,1708992650411,-500.0,0.00020821,2]
[315371131,1708992650420,-500.0,0.00020821,2]
[315371132,1708992650429,-500.0,0.00020821,2]
[315371133,1708992650438,-151.0,0.00020821,2]
[315371134,1708992650447,-254.49018952,0.00020821,2]
[315371135,1708992650456,-1554.8749806,0.00020821,2]
[315371136,1708992650615,-500.0,0.00019178,2]
[315371137,1708992650624,-227.82,0.00019442,3]
[315371138,1708992650632,-393.1800003,0.00020304,2]
[315371139,1708992650647,-402.86338597,0.00020304,2]
[315371140,1708992650658,-345.12869652,0.00020304,2]
[315371141,1708992650669,-2707.30222065,0.00020304,2]
[315371144,1708992859213,5000.0,0.000192,6]
[315371145,1708992876585,2006.26760538,0.000192,6]
[315371242,1708993840846,-300.77936664,0.00018248,2]
[315371244,1708993840855,-1591.40581037,0.00018249,2]
[315371246,1708993840867,-737.6264234,0.00018251,2]
[315371248,1708993840877,-188.38117424,0.000188,2]
[315371250,1708993840886,-673.46363782,0.000189,2]
[315371252,1708993840895,-286.78,0.00019168,3]
[315371254,1708993840904,-238.99,0.00019168,3]
[315371256,1708993840913,-716.97,0.00019168,3]
[315371258,1708993840923,-280.85132988,0.00019177,2]
[315371260,1708993840932,-646.47874491,0.00019178,2]
[315371262,1708993840940,-500.70616589,0.00019178,2]
[315371264,1708993840950,-501.86045569,0.00019178,2]
[315371266,1708993840959,-501.52917803,0.00019178,2]
[315371268,1708993840968,-500.0,0.00019178,2]
[315371270,1708993840977,-500.0,0.00019178,2]
[315371272,1708993840987,-500.0,0.00019178,2]
[315371274,1708993840996,-500.0,0.00019178,2]
[315371276,1708993841005,-546.91782666,0.00019178,2]
[315371278,1708993841014,-502.38633586,0.00019178,2]
[315371280,1708993841023,-500.0,0.00019178,2]
[315371282,1708993841032,-500.0,0.00019178,2]
[315371284,1708993841041,-500.0,0.00019178,2]
[315371286,1708993841050,-500.0,0.00019178,2]
[315371288,1708993841059,-500.0,0.00019178,2]
[315371290,1708993841068,-500.0,0.00019178,2]
[315371292,1708993841078,-500.0,0.00019178,2]
[315371294,1708993841086,-500.0,0.00019178,2]
[315371296,1708993841096,-500.0,0.00019178,2]
[315371298,1708993841105,-500.0,0.00019178,2]
[315371300,1708993841116,-500.0,0.00019178,2]
[315371302,1708993841126,-500.0,0.00019178,2]
[315371304,1708993841136,-500.0,0.00019178,2]
[315371306,1708993841145,-500.0,0.00019178,2]
[315371307,1708993841154,-500.0,0.00019178,2]
[315371308,1708993841163,-500.0,0.00019178,2]
[315371309,1708993841174,-569.28,0.00019178,2]
[315371310,1708993841183,-500.0,0.00019178,2]
[315371311,1708993841193,-500.0,0.00019178,2]
[315371312,1708993841202,-500.0,0.00019178,2]
[315371313,1708993841212,-500.0,0.00019178,2]
[315371314,1708993841221,-500.0,0.00019178,2]
[315371315,1708993841231,-500.0,0.00019178,2]
[315371316,1708993841240,-500.0,0.00019178,2]
[315371317,1708993841251,-500.0,0.00019178,2]
[315371318,1708993841264,-829.72,0.00019178,2]
[315371319,1708993841274,-1372.05,0.00019178,2]
[315371320,1708993841286,-500.35866528,0.00019178,2]
[315371321,1708993841295,-500.0,0.00019178,2]
[315371322,1708993841306,-500.0,0.00019178,2]
[315371323,1708993841314,-509.02416271,0.00019178,2]
[315371324,1708993841323,-500.0,0.00019178,2]
[315371325,1708993841333,-500.0,0.00019178,2]
[315371326,1708993841343,-500.0,0.00019178,2]
[315371327,1708993841353,-341.57797988,0.00019178,2]
[315371329,1708993841364,-500.0,0.00019178,2]
[315371331,1708993841374,-500.0,0.00019178,2]
[315371332,1708993841383,-500.0,0.00019178,2]
[315371334,1708993841393,-500.0,0.00019178,2]
[315371335,1708993841403,-500.0,0.00019178,2]
[315371336,1708993841412,-500.0,0.00019178,2]
[315371337,1708993841421,-500.0,0.00019178,2]
[315371338,1708993841430,-1000.0,0.00019178,2]
[315371339,1708993841439,-500.0,0.00019178,2]
[315371340,1708993841448,-1950.81,0.00019178,2]
[315371341,1708993841457,-536.17501023,0.00019178,2]
[315371342,1708993841471,-500.0,0.00019178,2]
[315371344,1708993841481,-501.52534223,0.00019178,2]
[315371347,1708993841491,-500.0,0.00019178,2]
[315371349,1708993841500,-500.0,0.00019178,2]
[315371350,1708993841509,-500.0,0.00019178,2]
[315371352,1708993841519,-206.9662042,0.00019178,2]
[315371354,1708993841529,-500.0,0.00019178,2]
[315371356,1708993841538,-1489.81,0.00019178,2]
[315371358,1708993841548,-500.0,0.00019178,2]
[315371360,1708993841558,-500.0,0.00019178,2]
[315371361,1708993841568,-500.0,0.00019178,2]
[315371363,1708993841578,-500.0,0.00019178,2]
[315371365,1708993841587,-502.13232332,0.00019178,2]
[315371366,1708993841597,-500.0,0.00019178,2]
[315371368,1708993841610,-1192.05,0.00019178,2]
[315371370,1708993841620,-500.0,0.00019178,2]
[315371372,1708993841629,-500.0,0.00019178,2]
[315371374,1708993841640,-500.0,0.00019178,2]
[315371376,1708993841649,-500.0,0.00019178,2]
[315371378,1708993841658,-479.17651164,0.00019178,2]
[315371380,1708993841668,-500.0,0.00019178,2]
[315371382,1708993841678,-500.0,0.00019178,2]
[315371384,1708993841688,-332.7256389,0.00019178,2]
[315371386,1708993841697,-500.0,0.00019178,2]
[315371388,1708993841707,-500.0,0.00019178,2]
[315371390,1708993841717,-500.0,0.00019178,2]
[315371392,1708993841727,-500.0,0.00019178,2]
[315371394,1708993841738,-500.0,0.00019178,2]
[315371396,1708993841747,-500.0,0.00019178,2]
[315371398,1708993841758,-500.0,0.00019178,2]
[315371400,1708993841768,-641.13,0.00019178,2]
[315371402,1708993841777,-500.0,0.00019178,2]
[315371404,1708993841788,-869.59,0.00019178,2]
[315371406,1708993841798,-500.0,0.00019178,2]
[315371408,1708993841808,-500.0,0.00019178,2]
[315371410,1708993841817,-500.0,0.00019178,2]
[315371412,1708993841827,-500.0,0.00019178,2]
[315371414,1708993841838,-571.63134775,0.00019178,2]
[315371416,1708993841847,-500.0,0.00019178,2]
[315371418,1708993841857,-500.0,0.00019178,2]
[315371420,1708993841868,-646.47,0.00019178,2]
[315371422,1708993841878,-500.0,0.00019178,2]
[315371424,1708993841888,-500.0,0.00019178,2]
[315371426,1708993841897,-500.0,0.00019178,2]
[315371428,1708993841906,-501.10627301,0.00019178,2]
[315371430,1708993841916,-500.0,0.00019178,2]
[315371431,1708993841926,-500.0,0.00019178,2]
[315371432,1708993841936,-500.0,0.00019178,2]
[315371434,1708993841946,-232.98568571,0.00019178,2]
[315371436,1708993841956,-500.0,0.00019178,2]
[315371438,1708993841966,-500.0,0.00019178,2]
[315371439,1708993841976,-500.0,0.00019178,2]
[315371441,1708993841986,-500.0,0.00019178,2]
[315371443,1708993841996,-500.0,0.00019178,2]
[315371445,1708993842005,-500.0,0.00019178,2]
[315371447,1708993842015,-2807.71,0.00019178,2]
[315371449,1708993842025,-500.5525622,0.00019178,2]
[315371451,1708993842035,-1643.98,0.00019178,2]
[315371453,1708993842045,-303.36233745,0.00019178,2]
[315371455,1708993842055,-502.11470017,0.00019178,2]
[315371457,1708993842065,-500.0,0.00019178,2]
[315371459,1708993842075,-10561.43,0.00019178,2]
[315371461,1708993842085,-500.0,0.00019178,2]
[315371463,1708993842095,-500.0,0.00019178,2]
[315371465,1708993842105,-500.0,0.00019178,2]
[315371467,1708993842116,-500.0,0.00019178,2]
[315371469,1708993842128,-500.0,0.00019178,2]
[315371471,1708993842137,-1000.0,0.00019178,2]
[315371472,1708993842147,-3406.66,0.00019178,2]
[315371475,1708993842156,-414.86935589,0.00019178,2]
[315371476,1708993842166,-500.0,0.00019178,2]
[315371479,1708993842177,-500.0,0.00019178,2]
[315371480,1708993842187,-1815.9,0.00019178,2]
[315371483,1708993842198,-2453.76,0.00019178,2]
[315371485,1708993842209,-500.0,0.00019178,2]
[315371487,1708993842219,-500.0,0.00019178,2]
[315371488,1708993842229,-502.2834176,0.00019178,2]
[315371491,1708993842240,-500.0,0.00019178,2]
[315371493,1708993842250,-500.0,0.00019178,2]
[315371495,1708993842261,-500.71978356,0.00019178,2]
[315371497,1708993842271,-500.0,0.00019178,2]
[315371498,1708993842281,-500.0,0.00019178,2]
[315371511,1708993842390,-17108.01,0.00019178,2]
[315371513,1708993842399,-1968.58,0.00019178,2]
[315371515,1708993842409,-501.85263397,0.00019178,2]
[315371517,1708993842418,-258.5246545,0.00019178,2]
[315371519,1708993842428,-500.0,0.00019178,2]
[315371521,1708993842438,-500.0,0.00019178,2]
[315371522,1708993842447,-500.0,0.00019178,2]
[315371524,1708993842456,-500.0,0.00019178,2]
[315371526,1708993842465,-500.0,0.00019178,2]
[315371528,1708993842475,-500.0,0.00019178,2]
[315371530,1708993842484,-500.0,0.00019178,2]
[315371531,1708993842493,-500.0,0.00019178,2]
[315371533,1708993842502,-500.0,0.00019178,2]
[315371535,1708993842511,-1193.17,0.00019178,2]
[315371536,1708993842521,-1507.9,0.00019178,2]
[315371537,1708993842530,-262.021544,0.00019178,2]
[315371538,1708993842539,-500.0,0.00019178,2]
[315371540,1708993842548,-500.0,0.00019178,2]
[315371542,1708993842558,-500.0,0.00019178,2]
[315371544,1708993842566,-1990.31,0.00019178,2]
[315371545,1708993842576,-500.0,0.00019178,2]
[315371547,1708993842585,-7015.53,0.00019178,2]
[315371550,1708993842595,-610.11,0.00019178,2]
[315371552,1708993842604,-610.11,0.00019178,2]
[315371553,1708993842615,-610.11,0.00019178,2]
[315371554,1708993842625,-500.0,0.00019178,2]
[315371555,1708993842634,-500.66995391,0.00019178,2]
[315371556,1708993842644,-500.0,0.00019178,2]
[315371557,1708993842653,-3218.84,0.00019178,2]
[315371558,1708993842663,-500.0,0.00019178,2]
[315371559,1708993842673,-500.0,0.00019178,2]
[315371560,1708993842682,-376.53441205,0.00019178,2]
[315371561,1708993842692,-376.01926502,0.00019178,2]
[315371562,1708993842701,-572.85,0.00019178,2]
[315371564,1708993842710,-500.0,0.00019178,2]
[315371565,1708993842719,-2593.08,0.00019178,2]
[315371566,1708993842728,-16582.13,0.00019178,2]
[315371567,1708993842737,-501.10864592,0.00019178,2]
[315371568,1708993842746,-1785.44,0.00019178,2]
[315371569,1708993842755,-420.38233181,0.00019178,2]
[315371570,1708993842764,-500.0,0.00019178,2]
[315371571,1708993842773,-500.0,0.00019178,2]
[315371572,1708993842782,-436.38596595,0.00019178,2]
[315371573,1708993842791,-2823.34,0.00019178,2]
[315371574,1708993842800,-500.0,0.00019178,2]
[315371575,1708993842809,-500.829993,0.00019178,2]
[315371576,1708993842818,-3493.17,0.00019178,2]
[315371577,1708993842827,-500.0,0.00019178,2]
[315371578,1708993842836,-500.0,0.00019178,2]
[315371579,1708993842845,-557.07689794,0.00019178,2]
[315371580,1708993842854,-1140.73,0.00019178,2]
[315371581,1708993842865,-1979.72,0.00019178,2]
[315371582,1708993842874,-171.64068098,0.00019178,2]
[315371583,1708993842884,-500.0,0.00019178,2]
[315371584,1708993842893,-500.0,0.00019178,2]
[315371585,1708993842902,-910.0,0.00019178,2]
[315371586,1708993842911,-501.18532948,0.00019178,2]
[315371588,1708993842921,-1060.23,0.00019178,2]
[315371590,1708993842930,-500.0,0.00019178,2]
[315371591,1708993842939,-1787.12,0.00019178,2]
[315371592,1708993842947,-500.0,0.00019178,2]
[315371593,1708993842956,-500.0,0.00019178,2]
[315371594,1708993842965,-500.0,0.00019178,2]
[315371596,1708993842974,-1204.16,0.00019178,2]
[315371597,1708993842983,-500.0,0.00019178,2]
[315371598,1708993842994,-632.07,0.00019178,2]
[315371599,1708993843004,-173.182397,0.00019178,2]
[315371600,1708993843013,-167.871908,0.00019178,2]
[315371601,1708993843023,-166.666666,0.00019178,2]
[315371602,1708993843034,-580.25088285,0.00019352,2]
[315371603,1708993843043,-153.0,0.000194,2]
[315371604,1708993843052,-153.0,0.000194,2]
[315371605,1708993843061,-610.11,0.00019451,2]
[315371606,1708993843070,-610.11,0.00019451,2]
[315371607,1708993843080,-610.11,0.00019451,2]
[315371608,1708993843091,-500.0,0.00019452,2]
[315371609,1708993843101,-500.0,0.00019452,2]
[315371610,1708993843111,-500.0,0.00019452,2]
[315371611,1708993843120,-500.0,0.00019452,2]
[315371612,1708993843130,-500.0,0.00019452,2]
[315371613,1708993843141,-500.0,0.00019452,2]
[315371614,1708993843152,-500.0,0.00019452,2]
[315371615,1708993843161,-500.0,0.00019452,2]
[315371616,1708993843171,-500.0,0.00019452,2]
[315371617,1708993843181,-501.57235247,0.00019452,2]
[315371618,1708993843189,-500.0,0.00019452,2]
[315371619,1708993843198,-500.0,0.00019452,2]
[315371620,1708993843208,-500.0,0.00019452,2]
[315371621,1708993843217,-527.37919013,0.00019452,2]
[315371622,1708993843225,-500.0,0.00019452,2]
[315371623,1708993843234,-500.0,0.00019452,2]
[315371624,1708993843244,-500.0,0.00019452,2]
[315371625,1708993843253,-500.0,0.00019452,2]
[315371626,1708993843264,-500.0,0.00019452,2]
[315371627,1708993843273,-503.33235874,0.00019452,2]
[315371628,1708993843283,-569.28,0.00019452,2]
[315371629,1708993843295,-500.0,0.00019452,2]
[315371630,1708993843304,-500.0,0.00019452,2]
[315371631,1708993843313,-500.0,0.00019452,2]
[315371632,1708993843322,-285.47079158,0.00019452,2]
[315371633,1708993843332,-500.0,0.00019452,2]
[315371634,1708993843341,-500.0,0.00019452,2]
[315371635,1708993843350,-290.39303171,0.00019452,2]
[315371636,1708993843359,-829.72,0.00019452,2]
[315371637,1708993843369,-1372.05,0.00019452,2]
[315371638,1708993843378,-500.0,0.00019452,2]
[315371639,1708993843388,-500.0,0.00019452,2]
[315371640,1708993843398,-500.0,0.00019452,2]
[315371641,1708993843407,-500.0,0.00019452,2]
[315371642,1708993843417,-500.0,0.00019452,2]
[315371643,1708993843426,-159.48453292,0.00019452,2]
[315371644,1708993843436,-500.0,0.00019452,2]
[315371645,1708993843445,-500.0,0.00019452,2]
[315371646,1708993843455,-500.0,0.00019452,2]
[315371647,1708993843465,-500.0,0.00019452,2]
[315371648,1708993843474,-510.36105547,0.00019452,2]
[315371649,1708993843484,-1001.44015609,0.00019452,2]
[315371650,1708993843493,-1950.81,0.00019452,2]
[315371651,1708993843503,-500.0,0.00019452,2]
[315371652,1708993843513,-500.0,0.00019452,2]
[315371653,1708993843522,-500.0,0.00019452,2]
[315371654,1708993843531,-501.47582872,0.00019452,2]
[315371655,1708993843540,-1489.81,0.00019452,2]
[315371656,1708993843550,-500.0,0.00019452,2]
[315371657,1708993843559,-500.0,0.00019452,2]
[315371658,1708993843568,-500.0,0.00019452,2]
[315371659,1708993843577,-500.0,0.00019452,2]
[315371660,1708993843587,-500.0,0.00019452,2]
[315371661,1708993843596,-1192.05,0.00019452,2]
[315371662,1708993843607,-500.0,0.00019452,2]
[315371663,1708993843618,-501.11759681,0.00019452,2]
[315371664,1708993843629,-501.25023183,0.00019452,2]
[315371665,1708993843639,-500.0,0.00019452,2]
[315371666,1708993843648,-500.0,0.00019452,2]
[315371667,1708993843657,-500.0,0.00019452,2]
[315371668,1708993843667,-500.0,0.00019452,2]
[315371669,1708993843677,-641.13,0.00019452,2]
[315371670,1708993843686,-500.0,0.00019452,2]
[315371671,1708993843695,-869.59,0.00019452,2]
[315371672,1708993843707,-500.0,0.00019452,2]
[315371673,1708993843718,-500.0,0.00019452,2]
[315371674,1708993843727,-500.0,0.00019452,2]
[315371675,1708993843736,-500.0,0.00019452,2]
[315371676,1708993843746,-646.47,0.00019452,2]
[315371677,1708993843757,-500.0,0.00019452,2]
[315371678,1708993843766,-500.0,0.00019452,2]
[315371679,1708993843775,-500.0,0.00019452,2]
[315371680,1708993843784,-500.0,0.00019452,2]
[315371681,1708993843793,-500.0,0.00019452,2]
[315371682,1708993843802,-500.0,0.00019452,2]
[315371683,1708993843811,-500.0,0.00019452,2]
[315371684,1708993843820,-500.0,0.00019452,2]
[315371685,1708993843829,-432.44409481,0.00019452,2]
[315371686,1708993843838,-449.10144349,0.00019452,2]
[315371687,1708993843848,-2807.71,0.00019452,2]
[315371688,1708993843857,-1643.98,0.00019452,2]
[315371689,1708993843867,-500.0,0.00019452,2]
[315371690,1708993843876,-10561.43,0.00019452,2]
[315371691,1708993843885,-500.0,0.00019452,2]
[315371692,1708993843895,-500.0,0.00019452,2]
[315371693,1708993843904,-500.0,0.00019452,2]
[315371694,1708993843912,-1000.0,0.00019452,2]
[315371695,1708993843921,-3406.66,0.00019452,2]
[315371696,1708993843930,-500.0,0.00019452,2]
[315371697,1708993843940,-500.0,0.00019452,2]
[315371698,1708993843951,-1815.9,0.00019452,2]
[315371699,1708993843960,-2453.76,0.00019452,2]
[315371700,1708993843971,-500.0,0.00019452,2]
[315371701,1708993843981,-485.44592047,0.00019452,2]
[315371702,1708993843990,-614.17651892,0.00019452,2]
[315371703,1708993844000,-500.0,0.00019452,2]
[315371704,1708993844008,-500.0,0.00019452,2]
[315371705,1708993844017,-17108.01,0.00019452,2]
[315371706,1708993844027,-1968.58,0.00019452,2]
[315371707,1708993844036,-478.4437147,0.00019452,2]
[315371708,1708993844045,-500.0,0.00019452,2]
[315371709,1708993844054,-225.36072718,0.00019452,2]
[315371710,1708993844065,-500.0,0.00019452,2]
[315371711,1708993844074,-502.00218481,0.00019452,2]
[315371712,1708993844084,-500.0,0.00019452,2]
[315371713,1708993844093,-185.15827025,0.00019452,2]
[315371714,1708993844102,-500.0,0.00019452,2]
[315371715,1708993844111,-527.5632554,0.00019452,2]
[315371716,1708993844122,-1193.17,0.00019452,2]
[315371717,1708993844131,-1507.9,0.00019452,2]
[315371718,1708993844140,-500.0,0.00019452,2]
[315371719,1708993844149,-500.0,0.00019452,2]
[315371720,1708993844158,-500.0,0.00019452,2]
[315371721,1708993844167,-1990.31,0.00019452,2]